Cogmind - Beta 10 X2 --- EXPLORER MODE // 2020.07.18 @ 21:23:01 // Experiment/BattleRoyale Player: Minty Result: Destroyed by Nuclearmaster-24 with Tesla Rifle Performance ------------- Evolutions (0) 0 Regions Visited (0) 0 Robots Destroyed (1) 5 Value Destroyed (500) 500 Prototype IDs (2) 40 Alien Tech Used (0) 0 Bonus (0) 0 TOTAL SCORE: 545 Bonus ------- None Cogmind --------- Core Integrity 0/250 Matter 244/450 Energy 281/415 System Corruption 0% Temperature Cool (920) Movement Treading (210) Ox2 Location -5/Wartown Parts ------- > --- POWER (2) -------- Cold Fusion Reactor Neutrino Core > --- PROPULSION (4) --- Armored Medium Treads > --- UTILITY (6) ------ Compact Matter Pod Experimental Melee Analysis Suite Improved Phase Shifter Makeshift Cloaking Device Layered Heavy Armor Plating > --- WEAPON (4) ------- Heavy EM Pulse Gun Particle Cannon Heavy Gauss Cannon > --- INVENTORY (4) ---- (None) Peak State ------------ > --- POWER ------------ Cold Fusion Reactor Neutrino Core > --- PROPULSION ------- Armored Medium Treads Improved Antigrav System > --- UTILITY ---------- Compact Matter Pod Experimental Melee Analysis Suite Improved Phase Shifter Makeshift Cloaking Device Layered Heavy Armor Plating > --- WEAPON ----------- Heavy EM Pulse Gun Particle Cannon Heavy Gauss Cannon > --- INVENTORY -------- (None) [Rating: 71] Favorites ----------- Power Cold Fusion Reactor Power Core Neutrino Core Reactor Cold Fusion Reactor Propulsion Armored Medium Treads Treads Armored Medium Treads Hover Unit Improved Antigrav System Utility Compact Matter Pod Device Improved Phase Shifter Storage Compact Matter Pod Processor Experimental Melee Analysis Suite Protection Layered Heavy Armor Plating Weapon Heavy EM Pulse Gun Energy Gun Heavy EM Pulse Gun Energy Cannon Particle Cannon Ballistic Cannon Heavy Gauss Cannon Build | -5 ------- Run | Tow Slots Evolved . | . Power . | . Propulsion . | . Utility . | . Weapon . | . Parts Attached . | . Power . | . Engine . | . Core . | . Reactor . | . Propulsion . | . Treads . | . Leg . | . Wheel . | . Hover . | . Flight . | . Utility . | . Device . | . Storage . | . Processor . | . Hackware . | . Protection . | . Artifact . | . Weapon . | . Energy Gun . | . Energy Cannon . | . Ballistic Gun . | . Ballistic Cannon . | . Launcher . | . Special Weapon . | . Impact Weapon . | . Slashing Weapon . | . Piercing Weapon . | . Special Melee Weapon . | . Unidentified Prototypes . | . Parts Lost . | . Power . | . Propulsion . | . Utility . | . Weapon . | . Highest Loss Streak . | . Average Slot Usage (%) 72 | 72 Core 6 | 6 Reactor 6 | 6 Treads 6 | 6 Device 12 | 12 Storage 6 | 6 Processor 6 | 6 Protection 6 | 6 Energy Gun 6 | 6 Energy Cannon 6 | 6 Ballistic Cannon 6 | 6 Naked Turns . | . Heaviest Build 68 | 68 Greatest Support 27 | 27 Greatest Overweight (x) 2 | 2 Average Overweight (x) 2 | 2 Largest Inventory Capacity 4 | 4 Average Capacity 4 | 4 Most Carried . | . Average Carried . | . Final Capacity 4 | 4 Final Carried . | . Class Distribution -------------------- 100% | Hacker-Tank Dominant Class ---------------- Hacker-Tank | -5/Wartown Resources | -5 ----------- Run | Tow Matter Collected . | . Remotely . | . Salvage Created . | . Parts . | . Haulers Intercepted . | . Recyclers Shooed . | . Parts Field Recycled . | . Retrieved Matter . | . Parts Self-Destructed . | . Prevented . | . Kills | -5 ------- Run | Tow Combat Hostiles Destroyed 1 | 1 Guns 1 | 1 Classes Destroyed 1 | 1 Player 1 | 1 Best Kill Streak 1 | 1 Combat Bots Only 1 | 1 Max Kills in Single Turn 1 | 1 Gunslinging . | . Exploded . | . Melee . | . Uniques/NPCs Destroyed . | . Combat | -5 -------- Run | Tow Damage Taken 541 | 541 Core 250 | 250 Absorbed by Shields . | . Redirected to Core 2928 | 2928 Core Remaining (%) . | . Volleys Fired 8 | 8 Largest 3 | 3 Hottest 174 | 174 Shots Fired 24 | 24 Gun 8 | 8 Cannon 16 | 16 Launcher . | . Special . | . Kinetic 8 | 8 Thermal 8 | 8 Explosive . | . Electromagnetic 8 | 8 Robot Hit Streak 8 | 8 Robot Miss Streak 1 | 1 Penetration Max . | . Secondary Targets . | . Shots Hit Robots 19 | 19 Core Hits 2 | 2 Critical Hits . | . Critical Kills . | . Critical Parts Destroyed . | . Melee Attacks . | . Impact . | . Slashing . | . Piercing . | . Sneak Attacks . | . Combat Hostiles . | . Follow-up Attacks . | . Damage Inflicted 378 | 378 Guns 74 | 74 Cannons 304 | 304 Explosions . | . Melee . | . Ramming . | . Kinetic 196 | 196 Thermal 108 | 108 Explosive . | . Electromagnetic 74 | 74 Impact . | . Slashing . | . Piercing . | . Highest Corruption . | . Average Corruption . | . Corruption Purged . | . Overload Shots . | . Overflow Damage . | . Projectiles . | . Explosions . | . Melee . | . Knockbacks 3 | 3 Impact . | . Kinetic 3 | 3 Secondary . | . Self-Inflicted Damage . | . Shots . | . Rammed . | . Targets Rammed . | . Kicked . | . Crushed . | . Highest Temperature 933 | 933 Average Temperature 379 | 379 Received Heat Transfer 99 | 99 Effects 9 | 9 Shutdowns 3 | 3 Matter Decay 1 | 1 Damage (minor) 3 | 3 Damage (core) 2 | 2 Siege Activations . | . Robots Corrupted . | . Combat Hostiles . | . Parts Fried . | . Impact Corruptions . | . Robots Melted . | . Combat Hostiles . | . Parts Melted . | . Heat Transferred 54 | 54 Parts Sabotaged . | . Parts Stolen . | . Parts Stripped . | . Power Chain Reactions . | . Missiles Intercepted . | . Alert | -5 ------- Run | Tow Peak Influence . | . Average Influence . | . Maximum Alert Level . | . Low Security (%) . | . Level 1 . | . Level 2 . | . Level 3 . | . Level 4 . | . Level 5 . | . High Security . | . Max Security . | . Squads Dispatched . | . Investigation . | . Extermination . | . Reinforcement . | . Assault . | . Garrison . | . Intercept . | . Construction Impeded . | . Haulers Reinforced . | . Stealth | -5 --------- Run | Tow Distress Signals . | . Communications Jammed . | . Distress Signals . | . Times Spotted 2 | 2 Peak Tracking Total 2 | 2 Tactical Retreats . | . Traps | -5 ------- Run | Tow Traps Triggered . | . Indirectly . | . Trap Hack Attempts . | . Triggered . | . Disarmed . | . Reprogrammed . | . Reused . | . Traps Extracted . | . Installed . | . Triggered . | . Machines | -5 ---------- Run | Tow Machines Disabled 4 | 4 Max in Single Turn 4 | 4 Machines Sabotaged . | . Garrisons Compromised . | . Overloaded Fab Kills . | . Fab Network Shutdowns . | . Hacking | -5 --------- Run | Tow Machines Accessed . | . Terminals . | . Fabricators . | . Repair Stations . | . Recycling Units . | . Scanalyzers . | . Garrison Access . | . Total Hacks . | . Successful . | . Failed . | . Catastrophic . | . Database Lockouts . | . Manual . | . Terminals . | . Fabricators . | . Repair Stations . | . Recycling Units . | . Scanalyzers . | . Garrison Access . | . Terminal Hacks . | . Fabricator Hacks . | . Repair Station Hacks . | . Recycling Unit Hacks . | . Scanalyzer . | . Garrison Access Hacks . | . Unauthorized Hacks . | . Terminals . | . Fabricators . | . Repair Stations . | . Recycling Units . | . Scanalyzers . | . Garrison Access . | . Data Cores Recovered . | . Used . | . Hacking Detections . | . Full Trace Events . | . Feedback Events . | . Feedback Blocked . | . Robot Schematics Acquired . | . Robots Built . | . Matter . | . Time . | . Total Robot Build Rating . | . Part Schematics Acquired . | . Parts Built . | . Matter . | . Time . | . Total Part Build Rating . | . Parts Repaired . | . Time . | . Parts Recycled . | . Recycled Matter . | . Retrieved Matter . | . Retrieved Components . | . Parts Scanalyzed . | . Part Schematics Acquired . | . Parts Damaged . | . Bothacking | -5 ------------ Run | Tow Used RIF Installer . | . Robots Hacked . | . Non-combat . | . Combat . | . Robot Hacks Applied . | . Relay Couplers Released . | . Robots Rewired . | . Allies Hacked . | . Hacks Repelled . | . Allies | -5 -------- Run | Tow Total Allies . | . Largest Group . | . Highest-Rated Group . | . Highest-Rated Ally . | . Total Orders . | . Ally Attacks . | . Total Damage . | . Kills . | . Allies Corrupted . | . Allies Melted . | . Intel | -5 ------- Run | Tow Robot Analysis Total . | . Derelict Logs Recovered . | . Drone Launches . | . Drone Recoveries . | . Exploration | -5 ------------- Run | Tow Turns Passed 109 | 109 Spaces Moved 27 | 27 Core . | . Treads 27 | 27 Legs . | . Wheels . | . Hover . | . Flight . | . Fastest Speed 210 | 210 Average Speed 210 | 210 Slowest Speed 210 | 210 Overloaded Moves . | . Propulsion Burnouts . | . Robots Hopped . | . Cave-ins Triggered . | . Exploration Rate (%) 2 | 2 Regions Visited 1 Branch Regions 1 Pre-discovered Areas . | . Known Exits Taken . | . Unknown Exits Taken . | . Scrap Searched . | . Spaces Dug . | . Terrain Destroyed 16 | 16 Melee . | . Projectile 1 | 1 AOE 15 | 15 Actions | -5 --------- Run | Tow Total 63 | 63 Wait 26 | 26 Move 27 | 27 Hop . | . Pick Up . | . Fast Attach . | . Attach . | . Detach . | . Swap . | . Drop 2 | 2 Fire 8 | 8 Melee . | . Ram . | . Kick . | . Crush . | . Escape Stasis . | . Rewire . | . Trap . | . Miscellaneous . | . Route ------- -5/Wartown History --------- Turn | Location | Event 82 | -5/Wartown | Core integrity fell below 50% 108 | -5/Wartown | Core integrity fell below 20% 110 | -5/Wartown | Destroyed by Nuclearmaster-24 with Tesla Rifle Last Messages --------------- 00076_ Underwing-15 knocked back. 00079_ Overheating: Core damaged (-32). 00080_ Power failure, Neutrino Core shutdown. 00085_ Slug penetrates Door. 00088_ Slug penetrates Wall. 00090_ Power failure, Neutrino Core shutdown. 00090_ Overheating: Cold Fusion Reactor damaged (-57). 00091_ Penetrated by Slug. 00094_ Slug penetrates Wall. 00096_ Underwing-15 knocked back. 00098_ Overheating: Hvy. Gauss Cannon damaged (-88). 00098_ Slug penetrates Wall. 00101_ Overheating: Matter decay (-54). 00104_ The unstable cave ceiling collapses. 00104_ Penetrated by HV Slug. 00104_ Slug penetrates Wall. 00106_ Overheating: Arm. Medium Treads damaged (-197). 00106_ Underwing-15 destroyed. 00107_ Power failure, Neutrino Core shutdown. 00109_ Overheating: Core damaged (-45). Map ----- +----------------------------------------------------+ | ?????????????????????????????????????????????????? | | ?????????????????????????????????????????????????? | | ?????????????????????????????????????????????????? | | ?????????????????????????????????????????????????? | | ?????????????????????????????????????????????????? | | ?????????????????????????????????????????????????? | | ?????????????????????????????????????????????????? | | ?????????????????????????????????????????????????? | | ?????????????????????????????????????????????????? | | ?????????????????????? ???????????????????????? | | ?????????????????????# ???????????????????????? | | ?????????????????????# ??????????????????????? | | ?????????????????????# @#??????????????????????? | | ?????????????????????# # ?????????????????????? | | ?????????????????????# # ?????????????????????? | | ???????????????"?????# "??????????????????????? | | ?????????????""" ????# "??????????????????????? | | ?????????????""" ????# #??????????????????????? | | ???????? ??? ????# #??????????????????????? | | ??????? #####;##### #?????????? ??????????? | | ?????? #???????? ??????????? | | ?????? +?????? +?????????? | | ??????? #???? ??????????? | | ????????# #?? ??????????? | | ????????# # ??????????????? | | ????????# @;#######"??????????????? | | ?????"??# ???????????? | | ??" """ # ??????????? | | ?? " ??????????? | | ??? " ?????????? | | ??????? + ??????????? | | ????????# ??????????? | | ????????# ??????????? | | ????# # ;# ???????????? | | ????# ;;;; ;;#### ???????????? | | ????# ! ???????????????? | | ????# [/ ???????????????? | | ????# [ ??????????????? | | ????# ????????????????? | | ????# ?????????????????? | | ????# ?????????????????? | | ????? ??????????????????? | | ????? ??????????????????? | | ?????? ???????????????????? | | ??????? ???????????????????? | | ????????? ?????????????????????? | | ??????????? ???????????????????????? | | ?????????????? ??????????????????????????? | | ?????????????? #??????????????????????????? | | ?????????????? #??????????????????????????? | +----------------------------------------------------+ Best States ------------- Heat Dissipation 25 Energy Generation 31 Energy Capacity 415 Matter Stores 300 Matter Capacity 450 Sight Range 16 Terrain Scan Density 10 Cloak Strength 3 Armor Coverage 600 Resistance: KI 35 Resistance: TH 35 Resistance: EX 35 Resistance: EM 35 Resistance: I 35 Resistance: S 35 Resistance: P 35 Phase Shifting 10 Evasion (%) 50 Melee Accuracy 12 Recoil Reduction 1 Offensive Hacking 20 Item Schematics ----------------- None Robot Schematics ------------------ None Fabricated ------------ Nothing Alien Tech Used ----------------- None Achievements -------------- None Challenges ------------ None Game ------ Seed HeartPropulsionThrusters Manual? 0 Play Time 00:03:25 Cumulative 211.1 hours Start 2020.07.18 @ 21:21:15 End 2020.07.18 @ 21:23:01 Sessions 1 Manual Loads 0 Difficulty Explorer Special Mode Experiment/BattleRoyale Game No. 114 Rogue 0 Adventurer 44 Explorer 70 Win Type - Total 3 Types 2/0/1/0/0/0/0 Lore% 53 Gallery% 79 Achievement% 57 Wizard Run 0 Options --------- ASCII 0 Keyboard 0 Movement Mouse Keybinds 0 Fullscreen 1 Font 18/TerminusBold Map View 76x50 Tactical HUD 1 Map Filters NONE Filters SATURATION(100) Steam 1 RUN: 4abe36bd-d2b9-470d-b5e2-a5d60c7ee458